Workbook

Sheet 最终核对发公告版本
A1: 贵阳市住房和城乡建设局2025年事业单位公开招聘工作人员总成绩及进入体检人员名单
A2: 序号 | B2: 姓名 | C2: 准考证号 | D2: 报考单位及代码 | E2: 报考岗位及代码 | F2: 笔试成绩 | G2: 笔试成绩 （百分制） | H2: 笔试成绩60%(A类、不组织专业测试B类） | I2: 笔试成绩30%（组织专业测试B类） | J2: 专业测试成绩 | K2: 专业测试成绩40% | L2: 笔试、专业测试总成绩 | M2: 面试成绩 | N2: 面试成绩40%（A类、不组织专业测试B类） | O2: 面试成绩30%（组织专业测试B类） | P2: 笔试、专业测试、面试总成绩 | Q2: 综合排名 | R2: 是否进入体检 | S2: 备注
A3: 1 | B3: 刘玉涛 | C3: 1152011500227 | D3: 贵阳市建筑管理处 | E3: 20101013301 | F3: 229 | G3: =F3/3 -> 76.33 | I3: =G3*0.3 -> 22.90 | J3: 69.30 | K3: =J3*0.4 -> 27.72 | L3: =I3+K3 -> 50.62 | M3: 81.80 | O3: =M3*0.3 -> 24.54 | P3: =H3+I3+K3+O3+N3 -> 75.16 | Q3: 1 | R3: 是
A4: 2 | B4: 韩海军 | C4: 1152011501625 | D4: 贵阳市建筑管理处 | E4: 20101013301 | F4: 184 | G4: 61.33 | I4: 18.40 | J4: 76.30 | K4: 30.52 | L4: 48.92 | M4: 80.40 | O4: =M4*0.3 -> 24.12 | P4: 73.04 | Q4: 2 | R4: 是
A5: 3 | B5: 符三江 | C5: 1152011502326 | D5: 贵阳市建筑管理处 | E5: 20101013301 | F5: 215.5 | G5: 71.83 | I5: 21.55 | J5: 67.30 | K5: 26.92 | L5: 48.47 | M5: 81.00 | O5: 24.30 | P5: 72.77 | Q5: 3 | R5: 否
A6: 4 | B6: 孙 鹏 | C6: 1152011500201 | D6: 贵阳市建筑管理处 | E6: 20101013301 | F6: 202.5 | G6: 67.50 | I6: 20.25 | J6: 67.50 | K6: 27.00 | L6: 47.25 | M6: 83.80 | O6: 25.14 | P6: 72.39 | Q6: 4 | R6: 否
A7: 6 | B7: 刘志豪 | C7: 1152011501216 | D7: 贵阳市建筑管理处 | E7: 20101013301 | F7: 191 | G7: 63.67 | I7: 19.10 | J7: 68.90 | K7: 27.56 | L7: 46.66 | M7: 80.80 | O7: 24.24 | P7: 70.90 | Q7: 5 | R7: 否
A8: 5 | B8: 张 超 | C8: 1152011501407 | D8: 贵阳市建筑管理处 | E8: 20101013301 | F8: 202.5 | G8: 67.50 | I8: 20.25 | J8: 67.05 | K8: 26.82 | L8: 47.07 | M8: 76.60 | O8: 22.98 | P8: 70.05 | Q8: 6 | R8: 否
A9: 7 | B9: 余鸿婷 | C9: 1152011502320 | D9: 贵阳市建筑管理处 | E9: 20101013302 | F9: 215.5 | G9: 71.83 | H9: =G9*0.6 -> 43.10 | M9: 84.80 | N9: =M9*0.4 -> 33.92 | P9: =H9+I9+K9+O9+N9 -> 77.02 | Q9: 1 | R9: 是
A10: 8 | B10: 何际平 | C10: 1152011602129 | D10: 贵阳市建筑管理处 | E10: 20101013302 | F10: 214 | G10: 71.33 | H10: =G10*0.6 -> 42.80 | M10: 78.20 | N10: =M10*0.4 -> 31.28 | P10: 74.08 | Q10: 2 | R10: 否
A11: 9 | B11: 黄 彬 | C11: 1152011502229 | D11: 贵阳市建筑管理处 | E11: 20101013302 | F11: 208 | G11: 69.33 | H11: =G11*0.6 -> 41.60 | M11: 79.00 | N11: =M11*0.4 -> 31.60 | P11: 73.20 | Q11: 3 | R11: 否
A12: 10 | B12: 颜 青 | C12: 1152011600324 | D12: 贵阳市建筑管理处 | E12: 20101013303 | F12: 203.5 | G12: 67.83 | I12: =G12*0.3 -> 20.35 | J12: 79.80 | K12: =J12*0.4 -> 31.92 | L12: =I12+K12 -> 52.27 | M12: 78.80 | O12: 23.64 | P12: 75.91 | Q12: 1 | R12: 是
A13: 11 | B13: 江雨姗 | C13: 1152011601122 | D13: 贵阳市建筑管理处 | E13: 20101013303 | F13: 210 | G13: 70.00 | I13: 21.00 | J13: 69.55 | K13: 27.82 | L13: 48.82 | M13: 76.80 | O13: 23.04 | P13: 71.86 | Q13: 2 | R13: 否
A14: 12 | B14: 刘 鹏 | C14: 1152011600505 | D14: 贵阳市建筑管理处 | E14: 20101013303 | F14: 177.5 | G14: 59.17 | I14: 17.75 | J14: 73.80 | K14: 29.52 | L14: 47.27 | M14: 75.60 | O14: 22.68 | P14: 69.95 | Q14: 3 | R14: 否
A15: 14 | B15: 周丽祝 | C15: 1152011600629 | D15: 贵阳市城市建设档案馆 | E15: 20101013401 | F15: 210.5 | G15: 70.17 | H15: =G15*0.6 -> 42.10 | M15: 82.40 | N15: =M15*0.4 -> 32.96 | P15: 75.06 | Q15: 1 | R15: 是
A16: 13 | B16: 邹振麟 | C16: 1152011600127 | D16: 贵阳市城市建设档案馆 | E16: 20101013401 | F16: 220.5 | G16: 73.50 | H16: =G16*0.6 -> 44.10 | M16: 77.20 | N16: =M16*0.4 -> 30.88 | P16: 74.98 | Q16: 2 | R16: 否
A17: 15 | B17: 刘亭穗 | C17: 1152011600204 | D17: 贵阳市城市建设档案馆 | E17: 20101013401 | F17: 207 | G17: 69.00 | H17: =G17*0.6 -> 41.40 | M17: 83.40 | N17: =M17*0.4 -> 33.36 | P17: 74.76 | Q17: 3 | R17: 否
A18: 16 | B18: 邱兢 | C18: 1152011601713 | D18: 贵阳市工程设计质量监督站（贵阳建设工程抗震服务中心） | E18: 20101013501 | F18: 196.5 | G18: 65.50 | I18: =G18*0.3 -> 19.65 | J18: 73.85 | K18: =J18*0.4 -> 29.54 | L18: =I18+K18 -> 49.19 | M18: 83.40 | O18: 25.02 | P18: 74.21 | Q18: 1 | R18: 是
A19: 17 | B19: 石 琳 | C19: 1152011601406 | D19: 贵阳市工程设计质量监督站（贵阳建设工程抗震服务中心） | E19: 20101013501 | F19: 179 | G19: 59.67 | I19: =G19*0.3 -> 17.90 | J19: 77.70 | K19: 31.08 | L19: =I19+K19 -> 48.98 | M19: 75.80 | O19: 22.74 | P19: 71.72 | Q19: 2 | R19: 否
A20: 18 | B20: 伍贵峰 | C20: 1152011600326 | D20: 贵阳市工程设计质量监督站（贵阳建设工程抗震服务中心） | E20: 20101013501 | F20: 195 | G20: 65.00 | I20: =G20*0.3 -> 19.50 | J20: 66.00 | K20: 26.40 | L20: =I20+K20 -> 45.90 | M20: 72.20 | O20: 21.66 | P20: 67.56 | Q20: 3 | R20: 否
A21: 19 | B21: 何林晔 | C21: 1152011601911 | D21: 贵阳市房屋使用安全管理中心 | E21: 20101013601 | F21: 221.5 | G21: 73.83 | H21: =G21*0.6 -> 44.30 | M21: 86.60 | N21: =M21*0.4 -> 34.64 | P21: 78.94 | Q21: 1 | R21: 是
A22: 21 | B22: 彭 炬 | C22: 1152011601329 | D22: 贵阳市房屋使用安全管理中心 | E22: 20101013601 | F22: 210 | G22: 70.00 | H22: 42.00 | M22: 79.20 | N22: =M22*0.4 -> 31.68 | P22: 73.68 | Q22: 2 | R22: 否
A23: 20 | B23: 薛占彬 | C23: 1152011600415 | D23: 贵阳市房屋使用安全管理中心 | E23: 20101013601 | F23: 215.5 | G23: 71.83 | H23: 43.10 | M23: 0.00 | N23: 0.00 | P23: 43.10 | Q23: 3 | R23: 否 | S23: 面试缺考
A24: 22 | B24: 黄 怡 | C24: 1152011601321 | D24: 贵阳市住房保障中心 | E24: 20101013701 | F24: 206.5 | G24: 68.83 | H24: 41.30 | M24: 85.20 | N24: =M24*0.4 -> 34.08 | P24: 75.38 | Q24: 1 | R24: 是
A25: 23 | B25: 王 玲 | C25: 1152011600822 | D25: 贵阳市住房保障中心 | E25: 20101013701 | F25: 204.5 | G25: 68.17 | H25: 40.90 | M25: 82.80 | N25: 33.12 | P25: 74.02 | Q25: 2 | R25: 否
A26: 24 | B26: 满红燕 | C26: 1152011602022 | D26: 贵阳市住房保障中心 | E26: 20101013701 | F26: 169.5 | G26: 56.50 | H26: 33.90 | M26: 78.80 | N26: 31.52 | P26: 65.42 | Q26: 3 | R26: 否
A27: 25 | B27: 张 珺 | C27: 1152011601517 | D27: 贵阳市房地产交易管理中心 | E27: 20101013801 | F27: 217 | G27: 72.33 | H27: 43.40 | M27: 85.20 | N27: 34.08 | P27: 77.48 | Q27: 1 | R27: 是
A28: 27 | B28: 晁 斌 | C28: 1152011601902 | D28: 贵阳市房地产交易管理中心 | E28: 20101013801 | F28: 185 | G28: 61.67 | H28: 37.00 | M28: 84.60 | N28: 33.84 | P28: 70.84 | Q28: 2 | R28: 否
A29: 26 | B29: 王雪莹 | C29: 1152011600615 | D29: 贵阳市房地产交易管理中心 | E29: 20101013801 | F29: 191 | G29: 63.67 | H29: 38.20 | M29: 79.40 | N29: 31.76 | P29: 69.96 | Q29: 3 | R29: 否
A30: 28 | B30: 戴阳雨 | C30: 1152011601606 | D30: 贵阳市房地产交易管理中心 | E30: 20101013802 | F30: 205.5 | G30: 68.50 | I30: =G30*0.3 -> 20.55 | J30: 76.85 | K30: =J30*0.4 -> 30.74 | L30: =I30+K30 -> 51.29 | M30: 75.00 | O30: 22.50 | P30: 73.79 | Q30: 1 | R30: 是
A31: 29 | B31: 万恒彪 | C31: 1152011601225 | D31: 贵阳市房地产交易管理中心 | E31: 20101013802 | F31: 195 | G31: 65.00 | I31: 19.50 | J31: 73.60 | K31: 29.44 | L31: 48.94 | M31: 82.00 | O31: 24.60 | P31: 73.54 | Q31: 2 | R31: 否
A32: 30 | B32: 袁 畅 | C32: 1152011600816 | D32: 贵阳市房地产交易管理中心 | E32: 20101013802 | F32: 182.5 | G32: 60.83 | I32: 18.25 | J32: 71.75 | K32: 28.70 | L32: 46.95 | M32: 76.00 | O32: 22.80 | P32: 69.75 | Q32: 3 | R32: 否
A33: 31 | B33: 孙福斌 | C33: 1152011600826 | D33: 贵阳市燃气管理服务中心 | E33: 20101013901 | F33: 193.5 | G33: 64.50 | I33: 19.35 | J33: 86.85 | K33: 34.74 | L33: 54.09 | M33: 78.80 | O33: 23.64 | P33: 77.73 | Q33: 1 | R33: 是
A34: 32 | B34: 陈露露 | C34: 1152011600123 | D34: 贵阳市燃气管理服务中心 | E34: 20101013901 | F34: 188.5 | G34: 62.83 | I34: 18.85 | J34: 82.70 | K34: 33.08 | L34: 51.93 | M34: 76.60 | O34: 22.98 | P34: 74.91 | Q34: 2 | R34: 否
A35: 33 | B35: 罗 雷 | C35: 1152011601622 | D35: 贵阳市燃气管理服务中心 | E35: 20101013901 | F35: 202 | G35: 67.33 | I35: 20.20 | J35: 79.00 | K35: 31.60 | L35: 51.80 | M35: 75.80 | O35: 22.74 | P35: 74.54 | Q35: 3 | R35: 否
